fUSD/lending_fUSD_20260614
["ID","MTS","AMOUNT","RATE_DAILY","PERIOD"]
[425013300,1781416246000,-500.0,0.00027945,8]
[425013301,1781416246000,-500.0,0.00027945,8]
[425013303,1781416246000,-500.0,0.00027945,8]
[425013302,1781416246000,-500.0,0.00027945,8]
[425013306,1781416246000,-3187.96,0.00027945,8]
[425013304,1781416246000,-1003.32,0.00027945,8]
[425013308,1781416246000,-500.0,0.00027945,8]
[425013307,1781416246000,-2542.25,0.00027945,8]
[425013321,1781416246000,-353.31188269,0.00027945,8]
[425013309,1781416246000,-511.17,0.00027945,8]
[425013311,1781416246000,-1881.88,0.00027945,8]
[425013310,1781416246000,-500.0,0.00027945,8]
[425013316,1781416246000,-719.38,0.00027945,8]
[425013318,1781416246000,-500.0,0.00027945,8]
[425013317,1781416246000,-500.0,0.00027945,8]
[425013313,1781416246000,-770.01,0.00027945,8]
[425013314,1781416246000,-500.0,0.00027945,8]
[425013315,1781416246000,-1071.25,0.00027945,8]
[425013319,1781416246000,-1163.17,0.00027945,8]
[425013312,1781416246000,-1866.12,0.00027945,8]
[425013345,1781416246000,-500.0,0.00027945,8]
[425013333,1781416246000,-712.69,0.00027945,8]
[425013346,1781416246000,-500.0,0.00027945,8]
[425013373,1781416246000,-500.0,0.00027945,8]
[425013375,1781416246000,-500.0,0.00027945,8]
[425013376,1781416246000,-2075.95,0.00027945,8]
[425013374,1781416246000,-15553.71,0.00027945,8]
[425013377,1781416246000,-500.0,0.00027945,8]
[425013379,1781416246000,-954.15,0.00027945,8]
[425013381,1781416246000,-2011.8,0.00027945,8]
[425013380,1781416246000,-500.0,0.00027945,8]
[425013378,1781416246000,-500.0,0.00027945,8]
[425013382,1781416246000,-500.0,0.00027945,8]
[425013383,1781416246000,-500.13,0.00027945,8]
[425013384,1781416246000,-500.0,0.00027945,8]
[425013386,1781416246000,-500.0,0.00027945,8]
[425013391,1781416246000,-500.0,0.00027945,8]
[425013388,1781416246000,-500.0,0.00027945,8]
[425013387,1781416246000,-500.0,0.00027945,8]
[425013385,1781416246000,-500.0,0.00027945,8]
[425013390,1781416246000,-500.0,0.00027945,8]
[425013389,1781416246000,-500.0,0.00027945,8]
[425013392,1781416246000,-2098.27,0.00027945,8]
[425013347,1781416246000,-2027.83,0.00027945,8]
[425013371,1781416246000,-1338.92,0.00027945,8]
[425013372,1781416246000,-5405.22,0.00027945,8]
[425013352,1781416246000,-695.05,0.00027945,8]
[425013370,1781416246000,-2496.95,0.00027945,8]
[425013344,1781416246000,-1553.49,0.00027945,8]
[425013368,1781416246000,-500.0,0.00027945,8]
[425013348,1781416246000,-500.0,0.00027945,8]
[425013349,1781416246000,-500.0,0.00027945,8]
[425013350,1781416246000,-500.0,0.00027945,8]
[425013351,1781416246000,-153.92974936,0.00027945,8]
[425013356,1781416246000,-743.15,0.00027945,8]
[425013357,1781416246000,-500.0,0.00027945,8]
[425013354,1781416246000,-1045.55,0.00027945,8]
[425013355,1781416246000,-500.0,0.00027945,8]
[425013353,1781416246000,-1310.37,0.00027945,8]
[425013359,1781416246000,-500.0,0.00027945,8]
[425013358,1781416246000,-500.0,0.00027945,8]
[425013367,1781416246000,-500.0,0.00027945,8]
[425013366,1781416246000,-500.0,0.00027945,8]
[425013364,1781416246000,-1209.78,0.00027945,8]
[425013365,1781416246000,-500.0,0.00027945,8]
[425013369,1781416246000,-2093.51,0.00027945,8]
[425013362,1781416246000,-1250.29,0.00027945,8]
[425013360,1781416246000,-500.0,0.00027945,8]
[425013361,1781416246000,-500.0,0.00027945,8]
[425013363,1781416246000,-585.03,0.00027945,8]
[425013430,1781416247000,-500.0,0.00027945,8]
[425013420,1781416247000,-1568.61,0.00027945,8]
[425013418,1781416247000,-609.89027558,0.00027945,8]
[425013419,1781416247000,-561.28,0.00027945,8]
[425013424,1781416247000,-4432.91,0.00027945,8]
[425013425,1781416247000,-500.0,0.00027945,8]
[425013423,1781416247000,-2519.65,0.00027945,8]
[425013426,1781416247000,-781.1,0.00027945,8]
[425013427,1781416247000,-500.0,0.00027945,8]
[425013428,1781416247000,-500.0,0.00027945,8]
[425013429,1781416247000,-500.0,0.00027945,8]
[425013439,1781416247000,-577.15816129,0.00027945,8]
[425013432,1781416247000,-541.05,0.00027945,8]
[425013433,1781416247000,-558.23,0.00027945,8]
[425013434,1781416247000,-1615.08,0.00027945,8]
[425013435,1781416247000,-837.03,0.00027945,8]
[425013436,1781416247000,-1477.01,0.00027945,8]
[425013438,1781416247000,-608.87,0.00027945,8]
[425013437,1781416247000,-500.0,0.00027945,8]
[425013443,1781416247000,-547.62,0.00027945,8]
[425013441,1781416247000,-3102.37,0.00027945,8]
[425013417,1781416247000,-1175.8,0.00027945,8]
[425013431,1781416247000,-702.57,0.00027945,8]
[425013421,1781416247000,-1131.02,0.00027945,8]
[425013405,1781416247000,-500.0,0.00027945,8]
[425013422,1781416247000,-500.0,0.00027945,8]
[425013393,1781416247000,-475.37874893,0.00027945,8]
[425013394,1781416247000,-1220.53,0.00027945,8]
[425013396,1781416247000,-5753.69,0.00027945,8]
[425013395,1781416247000,-687.87,0.00027945,8]
[425013401,1781416247000,-1412.97,0.00027945,8]
[425013400,1781416247000,-757.3,0.00027945,8]
[425013397,1781416247000,-1020.63,0.00027945,8]
[425013399,1781416247000,-4250.44,0.00027945,8]
[425013398,1781416247000,-500.0,0.00027945,8]
[425013403,1781416247000,-500.0,0.00027945,8]
[425013402,1781416247000,-500.0,0.00027945,8]
[425013404,1781416247000,-1973.87,0.00027945,8]
[425013406,1781416247000,-500.0,0.00027945,8]
[425013442,1781416247000,-889.97,0.00027945,8]
[425013408,1781416247000,-973.6,0.00027945,8]
[425013407,1781416247000,-500.0,0.00027945,8]
[425013409,1781416247000,-500.0,0.00027945,8]
[425013411,1781416247000,-1150.74,0.00027945,8]
[425013410,1781416247000,-500.0,0.00027945,8]
[425013413,1781416247000,-2149.5,0.00027945,8]
[425013412,1781416247000,-1592.68,0.00027945,8]
[425013414,1781416247000,-1525.12,0.00027945,8]
[425013415,1781416247000,-926.31,0.00027945,8]
[425013416,1781416247000,-2801.1,0.00027945,8]
[425013440,1781416247000,-500.0,0.00027945,8]
[425013444,1781416247000,-500.0,0.00027945,8]
[425013483,1781416247000,-1653.09,0.00027945,8]
[425013474,1781416247000,-1442.04,0.00027945,8]
[425013476,1781416247000,-1242.61,0.00027945,8]
[425013475,1781416247000,-500.0,0.00027945,8]
[425013477,1781416247000,-604.1,0.00027945,8]
[425013478,1781416247000,-501.45,0.00027945,8]
[425013479,1781416247000,-648.84,0.00027945,8]
[425013480,1781416247000,-500.0,0.00027945,8]
[425013482,1781416247000,-1192.0,0.00027945,8]
[425013445,1781416247000,-883.55,0.00027945,8]
[425013484,1781416247000,-745.59,0.00027945,8]
[425013485,1781416247000,-500.0,0.00027945,8]
[425013486,1781416247000,-589.39,0.00027945,8]
[425013487,1781416247000,-500.0,0.00027945,8]
[425013488,1781416247000,-1755.46,0.00027945,8]
[425013490,1781416247000,-1848.1,0.00027945,8]
[425013489,1781416247000,-500.0,0.00027945,8]
[425013491,1781416247000,-500.0,0.00027945,8]
[425013492,1781416247000,-500.0,0.00027945,8]
[425013493,1781416247000,-8632.18,0.00027945,8]
[425013494,1781416247000,-1960.39,0.00027945,8]
[425013496,1781416247000,-500.0,0.00027945,8]
[425013495,1781416247000,-500.0,0.00027945,8]
[425013497,1781416247000,-500.0,0.00027945,8]
[425013471,1781416247000,-500.0,0.00027945,8]
[425013472,1781416247000,-544.28,0.00027945,8]
[425013481,1781416247000,-963.02,0.00027945,8]
[425013467,1781416247000,-500.0,0.00027945,8]
[425013446,1781416247000,-955.0,0.00027945,8]
[425013448,1781416247000,-500.0,0.00027945,8]
[425013449,1781416247000,-1270.21,0.00027945,8]
[425013453,1781416247000,-809.36,0.00027945,8]
[425013473,1781416247000,-500.0,0.00027945,8]
[425013447,1781416247000,-510.37,0.00027945,8]
[425013451,1781416247000,-2375.22,0.00027945,8]
[425013452,1781416247000,-500.0,0.00027945,8]
[425013454,1781416247000,-775.96,0.00027945,8]
[425013455,1781416247000,-500.0,0.00027945,8]
[425013457,1781416247000,-215.33195751,0.00027945,8]
[425013458,1781416247000,-3220.54,0.00027945,8]
[425013450,1781416247000,-500.0,0.00027945,8]
[425013462,1781416247000,-1007.92,0.00027945,8]
[425013461,1781416247000,-500.0,0.00027945,8]
[425013464,1781416247000,-500.0,0.00027945,8]
[425013459,1781416247000,-500.0,0.00027945,8]
[425013469,1781416247000,-1295.96,0.00027945,8]
[425013460,1781416247000,-500.0,0.00027945,8]
[425013463,1781416247000,-500.0,0.00027945,8]
[425013466,1781416247000,-500.0,0.00027945,8]
[425013465,1781416247000,-1615.64,0.00027945,8]
[425013468,1781416247000,-1354.7,0.00027945,8]
[425013470,1781416247000,-223.69280984,0.00027945,8]
[425013456,1781416247000,-2352.69,0.00027945,8]
[425013498,1781416248000,-970.25,0.00027945,8]
[425013499,1781416248000,-500.0,0.00027945,2]
[425013500,1781416248000,-500.0,0.00027945,8]
[425013502,1781416248000,-1325.24,0.00027945,8]
[425013505,1781416248000,-500.0,0.00027945,8]
[425013504,1781416248000,-2716.9,0.00027945,8]
[425013501,1781416248000,-2347.19,0.00027945,8]
[425013506,1781416248000,-1383.88286573,0.00027945,8]
[425013503,1781416248000,-500.0,0.00027945,8]
[425013508,1781416432000,-153.47,0.00016438,2]
[425013509,1781416449000,-153.47,0.00016438,2]
[425013510,1781416465000,-172.68,0.00016438,2]
[425013511,1781416482000,-172.68,0.00016438,2]
[425013514,1781416609000,-33.84,0.00016438,2]
[425013513,1781416609000,666130.67236323,0.00015,2]
[425013521,1781416610000,-500.0,0.00016927,2]
[425013523,1781416610000,-500.0,0.00016927,2]
[425013519,1781416610000,-500.0,0.00016927,2]
[425013522,1781416610000,-500.0,0.00016927,2]
[425013518,1781416610000,-500.0,0.00016927,2]
[425013517,1781416610000,-500.0,0.00016927,2]
[425013516,1781416610000,-500.0,0.00016927,2]
[425013520,1781416610000,-500.0,0.00016927,2]
[425013524,1781416610000,-500.0,0.00016927,2]
[425013515,1781416610000,-500.0,0.00016927,2]
[425013526,1781416610000,-500.0,0.00016927,2]
[425013525,1781416610000,-500.0,0.00016927,2]
[425013532,1781416610000,-500.0,0.00016927,2]
[425013533,1781416610000,-500.0,0.00016927,2]
[425013530,1781416610000,-500.0,0.00016927,2]
[425013534,1781416610000,-480.79601658,0.00016927,2]
[425013529,1781416610000,-500.0,0.00016927,2]
[425013528,1781416610000,-500.0,0.00016927,2]
[425013527,1781416610000,-500.0,0.00016927,2]
[425013531,1781416610000,-485.36398342,0.00016927,2]
[425013540,1781416635000,-500.0,0.00016927,2]
[425013535,1781416635000,-19.20398342,0.00016927,2]
[425013536,1781416635000,-500.0,0.00016927,2]
[425013537,1781416635000,-500.0,0.00016927,2]
[425013538,1781416635000,-500.0,0.00016927,2]
[425013539,1781416635000,-500.0,0.00016927,2]
[425013542,1781416635000,-500.0,0.00016927,2]
[425013543,1781416635000,-500.0,0.00016927,2]
[425013544,1781416635000,-274.6906414,0.00016927,2]
[425013546,1781416635000,-500.0,0.00016927,2]
[425013545,1781416635000,-500.0,0.00016927,2]
[425013548,1781416635000,-500.0,0.00016927,2]
[425013547,1781416635000,-500.0,0.00016927,2]
[425013549,1781416635000,-500.0,0.00016927,2]
[425013541,1781416635000,-500.0,0.00016927,2]
[425013552,1781416636000,-151.0,0.00018,2]
[425013551,1781416636000,-151.0,0.00018,2]
[425013550,1781416636000,-548.53639835,0.00016927,2]
[425013555,1781416765000,-350.0,0.00018663,2]
[425013554,1781416765000,-503.0,0.00018,2]
[425013557,1781416765000,-5398.40174066,0.00021,2]
[425013556,1781416765000,-1203.59825934,0.0002,2]
[425013558,1781416773000,250.0,0.00014,2]
[425013559,1781416786000,-4980.0,0.00021,2]
[425013561,1781416805000,-1421.0,0.00019979,2]
[425013560,1781416805000,-500.0,0.00018,2]
[425013562,1781416825000,-1053.2760127,0.00019979,2]
[425013563,1781416839000,-171.7239873,0.00020999,2]
[425013566,1781417245000,-487.14311013,0.00019752,2]
[425013564,1781417245000,-150.0,0.0001916,2]
[425013565,1781417245000,-500.0,0.00019752,2]
[425013594,1781417432000,-151.0,0.00019753,2]
[425013583,1781417432000,-545.99,0.00019725,18]
[425013595,1781417432000,-152.0,0.00019753,2]
[425013585,1781417432000,-545.99,0.00019725,18]
[425013589,1781417432000,-153.0,0.00019753,2]
[425013591,1781417432000,-151.0,0.00019753,2]
[425013592,1781417432000,-151.0,0.00019753,2]
[425013584,1781417432000,-545.99,0.00019725,18]
[425013588,1781417432000,-152.0,0.00019753,2]
[425013577,1781417432000,-151.0,0.00019444,2]
[425013580,1781417432000,-545.99,0.00019725,18]
[425013576,1781417432000,-1500.0,0.00019444,2]
[425013578,1781417432000,-545.99,0.00019725,18]
[425013574,1781417432000,-937.38030457,0.00018656,2]
[425013575,1781417432000,-334.6827223,0.00018656,2]
[425013579,1781417432000,-545.99,0.00019725,18]
[425013581,1781417432000,-545.99,0.00019725,18]
[425013572,1781417432000,-288.74273006,0.00018646,2]
[425013573,1781417432000,-511.46248483,0.00018656,2]
[425013582,1781417432000,-545.99,0.00019725,18]
[425013587,1781417432000,-151.0,0.00019753,2]
[425013593,1781417432000,-151.0,0.00019753,2]
[425013586,1781417432000,-545.99,0.00019725,18]
[425013590,1781417432000,-152.0,0.00019753,2]
[425013614,1781417432000,-350.0,0.00021781,4]
[425013613,1781417432000,-194.90197034,0.00021404,3]
[425013612,1781417432000,-203.0,0.00021,2]
[425013611,1781417432000,-159.0,0.00021,2]
[425013610,1781417432000,-8219.76610644,0.00021,2]
[425013607,1781417432000,-409.0,0.00020636,2]
[425013603,1781417432000,-159.0,0.0002,2]
[425013606,1781417432000,-412.0,0.00020564,2]
[425013604,1781417432000,-339.40575367,0.000202,2]
[425013609,1781417432000,-398.0,0.0002087,2]
[425013597,1781417432000,-152.0,0.00019753,2]
[425013602,1781417432000,-156.0,0.0002,2]
[425013601,1781417432000,-203.0,0.0002,2]
[425013608,1781417432000,-411.0,0.00020733,2]
[425013600,1781417432000,-159.0,0.0002,2]
[425013599,1781417432000,-298.80895522,0.00019992,2]
[425013598,1781417432000,-156.11249427,0.00019753,2]
[425013596,1781417432000,-150.0,0.00019753,2]
[425013605,1781417432000,-397.0,0.00020512,2]
[425013634,1781417433000,-166.66,0.0002507,30]
[425013636,1781417433000,-169.82,0.00025347,2]
[425013637,1781417433000,-169.82,0.00025347,2]
[425013640,1781417433000,-160.0,0.00025599,2]
[425013638,1781417433000,-169.82,0.00025347,2]
[425013639,1781417433000,-166.66,0.00025566,30]
[425013641,1781417433000,-350.0,0.00025771,7]
[425013644,1781417433000,-1448.8427894,0.00026292,2]
[425013635,1781417433000,-169.82,0.00025347,2]
[425013642,1781417433000,-166.66,0.00026063,30]
[425013643,1781417433000,-429.0,0.00026223,10]
[425013645,1781417433000,-334.6827223,0.00026292,2]
[425013654,1781417433000,-176.4,0.00026954,2]
[425013656,1781417433000,-1876.919,0.00027044,2]
[425013633,1781417433000,-219.0,0.00025,2]
[425013649,1781417433000,-7455.1241,0.00026714,2]
[425013631,1781417433000,-200.0,0.00024933,2]
[425013623,1781417433000,-203.0,0.00023,2]
[425013628,1781417433000,-203.0,0.00024,2]
[425013652,1781417433000,-174.57,0.00026865,120]
[425013620,1781417433000,-1448.8427894,0.00022474,2]
[425013615,1781417433000,-498.0,0.0002181,2]
[425013618,1781417433000,-159.0,0.00022,2]
[425013616,1781417433000,-172.45098517,0.00021832,3]
[425013619,1781417433000,-203.0,0.00022,2]
[425013617,1781417433000,-150.0,0.00021918,2]
[425013621,1781417433000,-334.6827223,0.00022474,2]
[425013624,1781417433000,-150.0,0.00023014,2]
[425013622,1781417433000,-159.0,0.00023,2]
[425013625,1781417433000,-2474.2760127,0.00023356,2]
[425013626,1781417433000,-166.66,0.00023581,30]
[425013630,1781417433000,-166.66,0.00024573,30]
[425013629,1781417433000,-166.66,0.00024077,30]
[425013627,1781417433000,-159.0,0.00024,2]
[425013632,1781417433000,-169.00974342,0.00025,2]
[425013655,1781417433000,-498.0,0.0002697,2]
[425013686,1781417433000,-927.8243485,0.00027886,2]
[425013647,1781417433000,-162.49,0.00026442,2]
[425013674,1781417433000,-317.34173481,0.00027622,7]
[425013671,1781417433000,-500.0,0.000275,7]
[425013672,1781417433000,-153.47,0.0002755,30]
[425013646,1781417433000,-151.0,0.00026296,2]
[425013677,1781417433000,-263.73,0.00027818,10]
[425013679,1781417433000,-577.75642072,0.00027838,2]
[425013683,1781417433000,-12.54226587,0.00027843,2]
[425013678,1781417433000,-316.47,0.00027828,10]
[425013680,1781417433000,-250.516969,0.0002784,10]
[425013682,1781417433000,-2487.45773413,0.00027843,2]
[425013681,1781417433000,-150.75507141,0.0002784,2]
[425013688,1781417433000,-214.83277436,0.00027941,8]
[425013684,1781417433000,-2082.23739157,0.00027845,2]
[425013685,1781417433000,-585.41613012,0.00027845,2]
[425013687,1781417433000,-200.0,0.000279,10]
[425013669,1781417433000,-1265.76,0.000274,2]
[425013673,1781417433000,-172.68,0.0002755,30]
[425013675,1781417433000,-577.75642072,0.00027777,2]
[425013667,1781417433000,-247.41581861,0.00027397,120]
[425013653,1781417433000,-5000.0,0.00026877,2]
[425013648,1781417433000,-11606.3877,0.00026714,2]
[425013676,1781417433000,-317.34173481,0.00027785,7]
[425013650,1781417433000,-2474.2760127,0.00026733,2]
[425013657,1781417433000,-317.34173481,0.00027132,2]
[425013658,1781417433000,-310.0,0.00027146,2]
[425013659,1781417433000,-6077.0,0.00027146,2]
[425013662,1781417433000,-1194.337,0.00027313,16]
[425013651,1781417433000,-404.0,0.00026803,2]
[425013660,1781417433000,-3175.535,0.00027146,2]
[425013665,1781417433000,-215.40066152,0.00027397,2]
[425013661,1781417433000,-317.34173481,0.00027295,2]
[425013664,1781417433000,-528.86,0.00027397,2]
[425013663,1781417433000,-162.477,0.00027313,16]
[425013668,1781417433000,-404.79197461,0.00027397,120]
[425013670,1781417433000,-317.34173481,0.00027458,7]
[425013666,1781417433000,-49.56933848,0.00027397,2]
[425013700,1781417438000,-436.28515473,0.00027941,8]
[425013701,1781417438000,-437.46982405,0.00027941,8]
[425013697,1781417438000,-205.83727101,0.00027941,8]
[425013698,1781417438000,-310.06657108,0.00027941,8]
[425013696,1781417438000,-772.86869418,0.00027941,8]
[425013691,1781417438000,-285.16722564,0.00027941,8]
[425013695,1781417438000,-227.13130582,0.00027941,8]
[425013693,1781417438000,-468.50806939,0.00027941,8]
[425013692,1781417438000,-89.52193061,0.00027941,8]
[425013705,1781417438000,-500.0,0.00027942,8]
[425013694,1781417438000,-500.0,0.00027941,8]
[425013704,1781417438000,-33.37972621,0.00027941,10]
[425013699,1781417438000,-63.71484527,0.00027941,8]
[425013703,1781417438000,-553.36,0.00027941,10]
[425013706,1781417438000,-253.46307958,0.00027942,8]
[425013714,1781417438000,-383.90894943,0.00027944,8]
[425013716,1781417438000,-244.81884467,0.00027944,8]
[425013712,1781417438000,-332.0,0.00027944,8]
[425013710,1781417438000,-326.15,0.00027944,8]
[425013715,1781417438000,-116.09105057,0.00027944,8]
[425013713,1781417438000,-500.0,0.00027944,7]
[425013708,1781417438000,-500.0,0.00027944,8]
[425013709,1781417438000,-171.46036906,0.00027944,8]
[425013707,1781417438000,-500.0,0.00027942,8]
[425013702,1781417438000,-198.26027379,0.00027941,10]
[425013711,1781417438000,-2.38963094,0.00027944,8]
[425013722,1781417440000,-46.57583039,0.00027944,8]
[425013721,1781417440000,-500.0,0.00027944,8]
[425013718,1781417440000,-1036.191919,0.00027944,8]
[425013719,1781417440000,-500.0,0.00027944,8]
[425013720,1781417440000,-500.0,0.00027944,8]
[425013717,1781417440000,-1150.24923633,0.00027944,8]
[425013741,1781417445000,-500.0,0.00027944,8]
[425013738,1781417445000,-300.0,0.00027944,2]
[425013740,1781417445000,-500.0,0.00027944,8]
[425013739,1781417445000,-1000.0,0.00027944,8]
[425013736,1781417445000,-1707.59,0.00027944,8]
[425013737,1781417445000,-500.0,0.00027944,2]
[425013735,1781417445000,-702.74416961,0.00027944,8]
[425013784,1781417446000,-500.0,0.00027945,8]
[425013776,1781417446000,-500.0,0.00027945,8]
[425013772,1781417446000,-306.55840348,0.00027945,8]
[425013773,1781417446000,-1475.92,0.00027945,8]
[425013769,1781417446000,-500.0,0.00027945,8]
[425013779,1781417446000,-716.44,0.00027945,8]
[425013777,1781417446000,-843.81,0.00027945,8]
[425013778,1781417446000,-500.0,0.00027945,8]
[425013775,1781417446000,-1034.44,0.00027945,8]
[425013781,1781417446000,-1745.08,0.00027945,8]
[425013792,1781417446000,-500.0,0.00027945,8]
[425013788,1781417446000,-500.0,0.00027945,8]
[425013791,1781417446000,-8613.63,0.00027945,8]
[425013793,1781417446000,-500.0,0.00027945,8]
[425013786,1781417446000,-508.83,0.00027945,8]
[425013782,1781417446000,-500.0,0.00027945,8]
[425013785,1781417446000,-2892.7,0.00027945,8]
[425013787,1781417446000,-1595.47,0.00027945,8]
[425013789,1781417446000,-500.0,0.00027945,8]
[425013790,1781417446000,-2198.4,0.00027945,8]
[425013794,1781417446000,-886.74,0.00027945,8]
[425013804,1781417446000,-500.0,0.00027945,8]
[425013805,1781417446000,-562.41,0.00027945,8]
[425013795,1781417446000,-510.76,0.00027945,8]
[425013796,1781417446000,-500.0,0.00027945,8]
[425013771,1781417446000,-1226.97,0.00027945,8]
[425013783,1781417446000,-500.0,0.00027945,8]
[425013774,1781417446000,-814.65,0.00027945,8]
[425013767,1781417446000,-500.0,0.00027945,8]
[425013768,1781417446000,-500.0,0.00027945,8]
[425013742,1781417446000,-500.0,0.00027944,15]
[425013754,1781417446000,-954.76,0.00027945,8]
[425013753,1781417446000,-500.0,0.00027945,8]
[425013743,1781417446000,-500.0,0.00027944,8]
[425013752,1781417446000,-908.38,0.00027945,8]
[425013747,1781417446000,-806.44,0.00027945,8]
[425013748,1781417446000,-642.76,0.00027945,8]
[425013745,1781417446000,-756.0,0.00027944,10]
[425013750,1781417446000,-500.0,0.00027945,8]
[425013746,1781417446000,-579.49713427,0.00027945,8]
[425013749,1781417446000,-500.0,0.00027945,8]
[425013751,1781417446000,-548.55,0.00027945,8]
[425013770,1781417446000,-500.0,0.00027945,8]
[425013744,1781417446000,-264.53992586,0.00027944,8]
[425013766,1781417446000,-500.0,0.00027945,8]
[425013797,1781417446000,-500.0,0.00027945,8]
[425013759,1781417446000,-500.0,0.00027945,8]
[425013758,1781417446000,-500.0,0.00027945,8]
[425013755,1781417446000,-6868.92,0.00027945,8]
[425013757,1781417446000,-2040.85,0.00027945,8]
[425013764,1781417446000,-500.0,0.00027945,8]
[425013760,1781417446000,-2791.61,0.00027945,8]
[425013763,1781417446000,-500.0,0.00027945,8]
[425013761,1781417446000,-1521.7,0.00027945,8]
[425013762,1781417446000,-1253.4,0.00027945,8]
[425013765,1781417446000,-500.0,0.00027945,8]
[425013756,1781417446000,-500.0,0.00027945,8]
[425013802,1781417446000,-500.0,0.00027945,8]
[425013780,1781417446000,-527.98591571,0.00027945,8]
[425013800,1781417446000,-549.5,0.00027945,8]
[425013845,1781417446000,-500.0,0.00027945,8]
[425013855,1781417446000,-1887.39,0.00027945,8]
[425013858,1781417446000,-1045.91,0.00027945,8]
[425013857,1781417446000,-334.97648371,0.00027945,8]
[425013849,1781417446000,-500.0,0.00027945,8]
[425013856,1781417446000,-500.0,0.00027945,8]
[425013852,1781417446000,-500.0,0.00027945,8]
[425013860,1781417446000,-500.0,0.00027945,8]
[425013859,1781417446000,-500.0,0.00027945,8]
[425013861,1781417446000,-909.03,0.00027945,8]
[425013863,1781417446000,-784.59,0.00027945,8]
[425013862,1781417446000,-1873.07,0.00027945,8]
[425013864,1781417446000,-505.32,0.00027945,8]
[425013865,1781417446000,-705.42,0.00027945,8]
[425013867,1781417446000,-3284.49,0.00027945,8]
[425013869,1781417446000,-1539.7,0.00027945,8]
[425013866,1781417446000,-500.0,0.00027945,8]
[425013868,1781417446000,-754.48,0.00027945,8]
[425013870,1781417446000,-2440.94,0.00027945,8]
[425013871,1781417446000,-618.47,0.00027945,8]
[425013873,1781417446000,-502.46,0.00027945,8]
[425013875,1781417446000,-500.0,0.00027945,8]
[425013801,1781417446000,-523.91,0.00027945,8]
[425013874,1781417446000,-1072.21,0.00027945,8]
[425013877,1781417446000,-500.0,0.00027945,8]
[425013872,1781417446000,-988.49,0.00027945,8]
[425013878,1781417446000,-500.0,0.00027945,8]
[425013847,1781417446000,-304.41036483,0.00027945,8]
[425013854,1781417446000,-1112.89,0.00027945,8]
[425013876,1781417446000,-713.95,0.00027945,8]
[425013843,1781417446000,-500.0,0.00027945,8]
[425013844,1781417446000,-1809.73,0.00027945,8]
[425013799,1781417446000,-500.0,0.00027945,8]
[425013798,1781417446000,-801.47,0.00027945,8]
[425013807,1781417446000,-500.0,0.00027945,8]
[425013817,1781417446000,-500.0,0.00027945,8]
[425013806,1781417446000,-1336.68,0.00027945,8]
[425013808,1781417446000,-500.0,0.00027945,8]
[425013809,1781417446000,-500.0,0.00027945,8]
[425013818,1781417446000,-599.6,0.00027945,8]
[425013812,1781417446000,-1469.64,0.00027945,8]
[425013811,1781417446000,-1682.51,0.00027945,8]
[425013810,1781417446000,-1178.17,0.00027945,8]